[Event "Late-Titled-Tuesday-Blitz-February-20-2024"]
[Site "Chess.com"]
[Date "2024.02.20"]
[Round "2"]
[White "rikchessmx"]
[Black "Pawngobblerx2000"]
[Result "0-1"]
[WhiteElo "2222"]
[BlackElo "2475"]
[TimeControl "180+1"]
[EndTime "14:15:58 PST"]
[Termination "Pawngobblerx2000 won by checkmate"]

1. e4 {[%clk 0:03:00.9]} 1... e5 {[%clk 0:03:00.1]} 2. Nf3 {[%clk 0:03:00]} 2...
Nc6 {[%clk 0:03:00.4]} 3. Bc4 {[%clk 0:02:59.7]} 3... Bc5 {[%clk 0:02:59.9]} 4.
d3 {[%clk 0:02:59.7]} 4... d6 {[%clk 0:02:58.7]} 5. c3 {[%clk 0:02:59]} 5... Nf6
{[%clk 0:02:58.2]} 6. a4 {[%clk 0:02:57.6]} 6... a5 {[%clk 0:02:56.1]} 7. O-O
{[%clk 0:02:56.7]} 7... O-O {[%clk 0:02:56.4]} 8. Na3 {[%clk 0:02:56.4]} 8... d5
{[%clk 0:02:46]} 9. exd5 {[%clk 0:02:53.9]} 9... Nxd5 {[%clk 0:02:46.9]} 10. Nb5
{[%clk 0:02:52.3]} 10... Nb6 {[%clk 0:02:46]} 11. Bb3 {[%clk 0:02:50.8]} 11...
Bg4 {[%clk 0:02:45.4]} 12. Qe2 {[%clk 0:02:49.5]} 12... Re8 {[%clk 0:02:36.6]}
13. Bg5 {[%clk 0:02:37.9]} 13... Qxg5 {[%clk 0:02:35.6]} 14. Bxf7+ {[%clk
0:02:34.4]} 14... Kh8 {[%clk 0:02:31.9]} 15. Bxe8 {[%clk 0:02:34.1]} 15... Bxf3
{[%clk 0:02:31.9]} 16. Qxf3 {[%clk 0:02:33.4]} 16... Rxe8 {[%clk 0:02:32.4]} 17.
Nxc7 {[%clk 0:02:32.6]} 17... Rf8 {[%clk 0:02:32.4]} 18. Qg3 {[%clk 0:02:27.4]}
18... Qxg3 {[%clk 0:02:26]} 19. hxg3 {[%clk 0:02:27]} 19... h5 {[%clk
0:02:19.3]} 20. Ne6 {[%clk 0:02:26.7]} 20... Be7 {[%clk 0:02:13.3]} 21. Nxf8
{[%clk 0:02:26]} 21... Bxf8 {[%clk 0:02:14.2]} 22. Rfe1 {[%clk 0:02:25.8]} 22...
Bd6 {[%clk 0:02:13.7]} 23. b3 {[%clk 0:02:20.7]} 23... Nd5 {[%clk 0:02:12.5]}
24. Rac1 {[%clk 0:02:17.7]} 24... Kg8 {[%clk 0:02:08.8]} 25. Kf1 {[%clk
0:02:17.9]} 25... Kf7 {[%clk 0:02:08.6]} 26. Ke2 {[%clk 0:02:18.3]} 26... Kf6
{[%clk 0:02:08.9]} 27. Kd1 {[%clk 0:02:18.2]} 27... Ba3 {[%clk 0:02:06.8]} 28.
Rc2 {[%clk 0:02:16.8]} 28... Bc5 {[%clk 0:02:05.1]} 29. Re4 {[%clk 0:02:09.9]}
29... g5 {[%clk 0:01:58.4]} 30. Rc4 {[%clk 0:02:09.3]} 30... b6 {[%clk
0:01:48.5]} 31. Ke2 {[%clk 0:02:07.3]} 31... Kf5 {[%clk 0:01:44.8]} 32. Rc1
{[%clk 0:01:54.5]} 32... h4 {[%clk 0:01:23]} 33. gxh4 {[%clk 0:01:50.2]} 33...
Nf4+ {[%clk 0:01:22.9]} 34. Kf3 {[%clk 0:01:42.5]} 34... g4+ {[%clk 0:01:21]}
35. Kg3 {[%clk 0:01:39.9]} 35... Ne2+ {[%clk 0:01:21.6]} 36. Kh2 {[%clk
0:01:39.4]} 36... Nxc1 {[%clk 0:01:21.9]} 37. d4 {[%clk 0:01:34]} 37... exd4
{[%clk 0:01:19.3]} 38. b4 {[%clk 0:01:33.4]} 38... Bd6+ {[%clk 0:01:18]} 39. g3
{[%clk 0:01:31.7]} 39... Ne5 {[%clk 0:01:05.6]} 40. Rc8 {[%clk 0:01:25.6]} 40...
d3 {[%clk 0:01:05.6]} 41. Rd8 {[%clk 0:01:21.3]} 41... Ke6 {[%clk 0:01:00]} 42.
bxa5 {[%clk 0:01:21]} 42... bxa5 {[%clk 0:00:58.2]} 43. c4 {[%clk 0:01:18.3]}
43... Nxc4 {[%clk 0:00:58]} 44. Re8+ {[%clk 0:01:16.8]} 44... Kd5 {[%clk
0:00:58.1]} 45. Re1 {[%clk 0:01:14.5]} 45... d2 {[%clk 0:00:58]} 46. Rd1 {[%clk
0:01:14.6]} 46... Nd3 {[%clk 0:00:56.3]} 47. Kg2 {[%clk 0:01:12.8]} 47... Ndb2
{[%clk 0:00:56.3]} 48. Rxd2+ {[%clk 0:01:11.7]} 48... Nxd2 {[%clk 0:00:56.1]}
49. f4 {[%clk 0:01:09.4]} 49... gxf3+ {[%clk 0:00:56]} 50. Kf2 {[%clk
0:01:09.7]} 50... Bc5+ {[%clk 0:00:55.4]} 51. Ke1 {[%clk 0:01:09.3]} 51... f2+
{[%clk 0:00:56]} 52. Kxd2 {[%clk 0:01:09.6]} 52... f1=Q {[%clk 0:00:56.9]} 53.
Kc3 {[%clk 0:01:09.4]} 53... Qd3+ {[%clk 0:00:56.8]} 54. Kxb2 {[%clk 0:01:09.4]}
54... Bd4+ {[%clk 0:00:57.3]} 55. Ka2 {[%clk 0:01:09.1]} 55... Qc2+ {[%clk
0:00:56.6]} 56. Ka3 {[%clk 0:01:07.6]} 56... Qb2# {[%clk 0:00:57.5]} 0-1

[Event "Late-Titled-Tuesday-Blitz-February-20-2024"]
[Site "Chess.com"]
[Date "2024.02.20"]
[Round "2"]
[White "jefferyx"]
[Black "YurasovMat-2012"]
[Result "1-0"]
[WhiteElo "3022"]
[BlackElo "2608"]
[TimeControl "180+1"]
[EndTime "14:15:59 PST"]
[Termination "jefferyx won by resignation"]

1. e4 {[%clk 0:03:00.9]} 1... e5 {[%clk 0:02:58.6]} 2. Nf3 {[%clk 0:03:00.9]}
2... Nf6 {[%clk 0:02:58]} 3. Nc3 {[%clk 0:03:01.3]} 3... Bb4 {[%clk 0:02:57.4]}
4. Nxe5 {[%clk 0:03:01.4]} 4... O-O {[%clk 0:02:57.1]} 5. Nd3 {[%clk 0:03:02.1]}
5... Bxc3 {[%clk 0:02:57.3]} 6. dxc3 {[%clk 0:03:03]} 6... Nxe4 {[%clk
0:02:57.5]} 7. Be2 {[%clk 0:03:03.9]} 7... d5 {[%clk 0:02:57.6]} 8. O-O {[%clk
0:03:04.6]} 8... Bf5 {[%clk 0:02:58]} 9. Nf4 {[%clk 0:03:00.5]} 9... Nf6 {[%clk
0:02:57.3]} 10. Be3 {[%clk 0:02:29.1]} 10... Nc6 {[%clk 0:02:47.8]} 11. Qd2
{[%clk 0:02:27.7]} 11... Re8 {[%clk 0:02:42.9]} 12. Rad1 {[%clk 0:02:27.1]}
12... Ne7 {[%clk 0:02:41.6]} 13. c4 {[%clk 0:02:25.4]} 13... c6 {[%clk
0:02:40.7]} 14. Qc3 {[%clk 0:02:04.5]} 14... Rc8 {[%clk 0:02:35.6]} 15. h3
{[%clk 0:01:59.6]} 15... Qc7 {[%clk 0:02:32.2]} 16. Bf3 {[%clk 0:01:32]} 16...
Ng6 {[%clk 0:02:20.7]} 17. Nxg6 {[%clk 0:01:30.3]} 17... Bxg6 {[%clk 0:02:20.1]}
18. cxd5 {[%clk 0:01:26.1]} 18... Nxd5 {[%clk 0:02:19]} 19. Bxd5 {[%clk
0:01:26.3]} 19... cxd5 {[%clk 0:02:18.8]} 20. Qxc7 {[%clk 0:01:27.2]} 20... Rxc7
{[%clk 0:02:18.8]} 21. c3 {[%clk 0:01:28.1]} 21... Be4 {[%clk 0:02:16.5]} 22.
Bxa7 {[%clk 0:01:23.1]} 22... Ra8 {[%clk 0:02:15.4]} 23. f3 {[%clk 0:01:22]}
23... Rxa7 {[%clk 0:02:07]} 24. fxe4 {[%clk 0:01:22]} 24... Rxa2 {[%clk
0:02:07.1]} 25. Rxd5 {[%clk 0:01:21.9]} 25... g6 {[%clk 0:02:02.5]} 26. Rb5
{[%clk 0:01:21.6]} 26... Re7 {[%clk 0:01:59.6]} 27. e5 {[%clk 0:01:13.5]} 27...
Kg7 {[%clk 0:01:58.3]} 28. Rd1 {[%clk 0:01:10.1]} 28... Ra4 {[%clk 0:01:51.4]}
29. Rd4 {[%clk 0:01:08.3]} 29... Ra1+ {[%clk 0:01:48.3]} 30. Kf2 {[%clk
0:01:08.1]} 30... Rc1 {[%clk 0:01:47.9]} 31. Rdb4 {[%clk 0:01:03.6]} 31... Rc2+
{[%clk 0:01:46.1]} 32. Kg3 {[%clk 0:01:04.1]} 32... Re2 {[%clk 0:01:44.7]} 33.
Rxb7 {[%clk 0:01:04.4]} 33... R7xe5 {[%clk 0:01:43.8]} 34. Rf4 {[%clk
0:01:04.3]} 34... Rg5+ {[%clk 0:01:42.4]} 35. Kf3 {[%clk 0:00:42.3]} 35... Rgxg2
{[%clk 0:01:38.1]} 36. Rfxf7+ {[%clk 0:00:42.5]} 36... Kg8 {[%clk 0:01:32.5]}
37. Rg7+ {[%clk 0:00:42.8]} 37... Kf8 {[%clk 0:01:30.5]} 38. Rbf7+ {[%clk
0:00:42.3]} 38... Ke8 {[%clk 0:01:30.1]} 39. Re7+ {[%clk 0:00:43]} 39... Rxe7
{[%clk 0:01:25.4]} 40. Rxe7+ {[%clk 0:00:43.9]} 40... Kxe7 {[%clk 0:01:26.3]}
41. Kxg2 {[%clk 0:00:44.5]} 41... Kd6 {[%clk 0:01:24.8]} 42. b4 {[%clk
0:00:39.2]} 42... Kd5 {[%clk 0:01:23.4]} 43. b5 {[%clk 0:00:37.8]} 43... Kc5
{[%clk 0:01:21.8]} 44. c4 {[%clk 0:00:38.4]} 44... g5 {[%clk 0:01:22]} 45. Kf3
{[%clk 0:00:37]} 45... h5 {[%clk 0:01:21.5]} 46. Ke4 {[%clk 0:00:37.2]} 46...
Kb6 {[%clk 0:01:13.9]} 47. Kf5 {[%clk 0:00:37.2]} 47... g4 {[%clk 0:01:12.9]}
48. hxg4 {[%clk 0:00:38.1]} 48... hxg4 {[%clk 0:01:13.8]} 49. Kxg4 {[%clk
0:00:38.5]} 49... Kc5 {[%clk 0:01:13.5]} 50. Kf5 {[%clk 0:00:39]} 1-0

[Event "Late-Titled-Tuesday-Blitz-February-20-2024"]
[Site "Chess.com"]
[Date "2024.02.20"]
[Round "2"]
[White "expii"]
[Black "Onthequiet"]
[Result "1/2-1/2"]
[WhiteElo "2168"]
[BlackElo "2439"]
[TimeControl "180+1"]
[EndTime "14:15:59 PST"]
[Termination "Game drawn by repetition"]

1. e4 {[%clk 0:02:28.9]} 1... c5 {[%clk 0:02:58.9]} 2. Nf3 {[%clk 0:02:29.3]}
2... Nc6 {[%clk 0:02:59.2]} 3. d4 {[%clk 0:02:29.8]} 3... cxd4 {[%clk
0:03:00.1]} 4. Nxd4 {[%clk 0:02:30.5]} 4... Qb6 {[%clk 0:03:00.4]} 5. Nxc6
{[%clk 0:02:29]} 5... bxc6 {[%clk 0:03:00.5]} 6. Nc3 {[%clk 0:02:29.3]} 6... e5
{[%clk 0:02:59.3]} 7. Bc4 {[%clk 0:02:25.5]} 7... Bb4 {[%clk 0:02:58.2]} 8. O-O
{[%clk 0:02:25.1]} 8... Bxc3 {[%clk 0:02:56.9]} 9. bxc3 {[%clk 0:02:26]} 9...
Nf6 {[%clk 0:02:55.5]} 10. Bd3 {[%clk 0:02:24.8]} 10... h6 {[%clk 0:02:54.1]}
11. Ba3 {[%clk 0:02:24.3]} 11... c5 {[%clk 0:02:50.2]} 12. Rb1 {[%clk
0:02:23.4]} 12... Qc7 {[%clk 0:02:50.1]} 13. c4 {[%clk 0:02:21.4]} 13... O-O
{[%clk 0:02:48.2]} 14. f4 {[%clk 0:02:18.7]} 14... d6 {[%clk 0:02:48]} 15. f5
{[%clk 0:02:16.4]} 15... Bb7 {[%clk 0:02:44.1]} 16. Bc1 {[%clk 0:02:14.8]} 16...
Bxe4 {[%clk 0:02:41.1]} 17. Bxe4 {[%clk 0:02:14.3]} 17... Nxe4 {[%clk 0:02:42]}
18. f6 {[%clk 0:02:11.3]} 18... Qd7 {[%clk 0:01:58.4]} 19. fxg7 {[%clk
0:02:03.7]} 19... Kxg7 {[%clk 0:01:58]} 20. Qf3 {[%clk 0:02:03.3]} 20... f5
{[%clk 0:01:57.1]} 21. g4 {[%clk 0:01:50.2]} 21... d5 {[%clk 0:01:33.9]} 22.
gxf5 {[%clk 0:01:46.1]} 22... Kh7 {[%clk 0:01:27]} 23. Kh1 {[%clk 0:01:33.1]}
23... Rf6 {[%clk 0:01:15]} 24. cxd5 {[%clk 0:01:30.9]} 24... Qxd5 {[%clk
0:01:12.9]} 25. Bb2 {[%clk 0:01:24.1]} 25... Raf8 {[%clk 0:01:02.1]} 26. Rbd1
{[%clk 0:01:16.5]} 26... Rxf5 {[%clk 0:00:58.4]} 27. Rxd5 {[%clk 0:01:10.5]}
27... Rxf3 {[%clk 0:00:58.1]} 28. Rxf3 {[%clk 0:01:10]} 28... Rxf3 {[%clk
0:00:57.9]} 29. Rxe5 {[%clk 0:01:10.3]} 29... Rf1+ {[%clk 0:00:43.9]} 30. Kg2
{[%clk 0:01:09.4]} 30... Rb1 {[%clk 0:00:44.3]} 31. Re7+ {[%clk 0:01:05.5]}
31... Kg6 {[%clk 0:00:43.8]} 32. Rxe4 {[%clk 0:01:03.8]} 32... Rxb2 {[%clk
0:00:43.4]} 33. Rc4 {[%clk 0:01:04.4]} 33... Rxa2 {[%clk 0:00:42.3]} 34. Rxc5
{[%clk 0:01:04.5]} 34... a5 {[%clk 0:00:42.9]} 35. Kf3 {[%clk 0:01:03]} 35...
Ra3+ {[%clk 0:00:41.7]} 36. Kg2 {[%clk 0:01:02.7]} 36... a4 {[%clk 0:00:42.6]}
37. Ra5 {[%clk 0:01:02.3]} 37... Ra2 {[%clk 0:00:40.4]} 38. Kf3 {[%clk
0:01:02.4]} 38... Rxc2 {[%clk 0:00:38.8]} 39. Rxa4 {[%clk 0:01:02]} 39... Rxh2
{[%clk 0:00:39]} 40. Kg3 {[%clk 0:01:02.9]} 40... Rc2 {[%clk 0:00:38]} 41. Ra6+
{[%clk 0:01:03.4]} 41... Kg5 {[%clk 0:00:37.8]} 42. Ra5+ {[%clk 0:01:03.7]}
42... Kg6 {[%clk 0:00:37.6]} 43. Ra6+ {[%clk 0:01:04.1]} 43... Kg7 {[%clk
0:00:38]} 44. Ra7+ {[%clk 0:01:04.6]} 44... Kg6 {[%clk 0:00:38.3]} 45. Ra6+
{[%clk 0:01:05.1]} 1/2-1/2

[Event "Late-Titled-Tuesday-Blitz-February-20-2024"]
[Site "Chess.com"]
[Date "2024.02.20"]
[Round "2"]
[White "stasOR4ik"]
[Black "martinmena"]
[Result "1-0"]
[WhiteElo "2463"]
[BlackElo "2187"]
[TimeControl "180+1"]
[EndTime "14:16:01 PST"]
[Termination "stasOR4ik won by checkmate"]

1. e4 {[%clk 0:03:00.9]} 1... c6 {[%clk 0:02:59.1]} 2. c4 {[%clk 0:03:01]} 2...
d5 {[%clk 0:03:00]} 3. cxd5 {[%clk 0:03:01.9]} 3... cxd5 {[%clk 0:03:00.1]} 4.
exd5 {[%clk 0:03:02.8]} 4... Nf6 {[%clk 0:03:00.5]} 5. Nc3 {[%clk 0:03:03.7]}
5... g6 {[%clk 0:03:01]} 6. Bc4 {[%clk 0:03:03.7]} 6... Bg7 {[%clk 0:03:01.5]}
7. Nf3 {[%clk 0:03:04.1]} 7... O-O {[%clk 0:03:02.1]} 8. d3 {[%clk 0:03:03.8]}
8... a6 {[%clk 0:03:02.7]} 9. a4 {[%clk 0:03:03.6]} 9... Nbd7 {[%clk 0:03:00.9]}
10. O-O {[%clk 0:03:02.1]} 10... b6 {[%clk 0:02:58.4]} 11. Re1 {[%clk
0:02:55.7]} 11... Bb7 {[%clk 0:02:58.1]} 12. Be3 {[%clk 0:02:22.6]} 12... Qc7
{[%clk 0:02:32.4]} 13. Qb3 {[%clk 0:02:09.9]} 13... Nc5 {[%clk 0:02:17.2]} 14.
Bxc5 {[%clk 0:02:09.5]} 14... Qxc5 {[%clk 0:02:17.1]} 15. Re2 {[%clk 0:02:02.2]}
15... Rac8 {[%clk 0:02:12.9]} 16. Rae1 {[%clk 0:02:00.5]} 16... Rfe8 {[%clk
0:01:48.1]} 17. h3 {[%clk 0:01:42.8]} 17... Nh5 {[%clk 0:01:26]} 18. d6 {[%clk
0:01:40.2]} 18... Bxf3 {[%clk 0:00:57]} 19. Bxf7+ {[%clk 0:01:39.9]} 19... Kh8
{[%clk 0:00:54.4]} 20. d7 {[%clk 0:01:39.9]} 20... Qg5 {[%clk 0:00:42.6]} 21. g4
{[%clk 0:01:32.6]} 21... Bxg4 {[%clk 0:00:38.4]} 22. Ne4 {[%clk 0:01:32.4]}
22... Qf4 {[%clk 0:00:10.7]} 23. dxe8=Q+ {[%clk 0:01:18.7]} 23... Rxe8 {[%clk
0:00:09.9]} 24. Bxe8 {[%clk 0:01:19.6]} 24... Bxh3 {[%clk 0:00:03.9]} 25. Re3
{[%clk 0:01:17.9]} 25... Qg4+ {[%clk 0:00:03.9]} 26. Ng3 {[%clk 0:01:16.7]}
26... Be5 {[%clk 0:00:02.6]} 27. Qf7 {[%clk 0:01:14.1]} 27... Bg7 {[%clk
0:00:01]} 28. Bc6 {[%clk 0:01:07.7]} 28... Nf4 {[%clk 0:00:01.2]} 29. Qe8+
{[%clk 0:01:07.2]} 29... Bf8 {[%clk 0:00:01.2]} 30. Qxf8# {[%clk 0:01:08.1]} 1-0

[Event "Late-Titled-Tuesday-Blitz-February-20-2024"]
[Site "Chess.com"]
[Date "2024.02.20"]
[Round "2"]
[White "BlueWizzard"]
[Black "aistrel"]
[Result "1-0"]
[WhiteElo "2885"]
[BlackElo "2540"]
[TimeControl "180+1"]
[EndTime "14:16:04 PST"]
[Termination "BlueWizzard won by resignation"]

1. d4 {[%clk 0:03:00.9]} 1... d5 {[%clk 0:02:59.6]} 2. Nc3 {[%clk 0:03:00.4]}
2... Nf6 {[%clk 0:02:56.1]} 3. Bg5 {[%clk 0:03:00.9]} 3... Nbd7 {[%clk
0:02:55.5]} 4. Nf3 {[%clk 0:03:01.6]} 4... h6 {[%clk 0:02:54.8]} 5. Bf4 {[%clk
0:03:01.4]} 5... a6 {[%clk 0:02:53.1]} 6. e3 {[%clk 0:03:00.9]} 6... e6 {[%clk
0:02:53.5]} 7. Ne5 {[%clk 0:02:59.4]} 7... c5 {[%clk 0:02:53]} 8. a4 {[%clk
0:02:58.8]} 8... Nxe5 {[%clk 0:02:47.7]} 9. dxe5 {[%clk 0:02:53.9]} 9... Nd7
{[%clk 0:02:47.7]} 10. Bd3 {[%clk 0:02:54.5]} 10... Qc7 {[%clk 0:02:43.8]} 11.
Nxd5 {[%clk 0:02:50.4]} 11... exd5 {[%clk 0:02:38.4]} 12. e6 {[%clk 0:02:48.6]}
12... Bd6 {[%clk 0:02:26.7]} 13. exd7+ {[%clk 0:02:41.7]} 13... Bxd7 {[%clk
0:02:27.6]} 14. Bxd6 {[%clk 0:02:39.2]} 14... Qxd6 {[%clk 0:02:26.2]} 15. O-O
{[%clk 0:02:39.3]} 15... O-O {[%clk 0:02:25.4]} 16. c4 {[%clk 0:02:40]} 16...
Bc6 {[%clk 0:02:23.7]} 17. cxd5 {[%clk 0:02:36]} 17... Qxd5 {[%clk 0:02:24.6]}
18. e4 {[%clk 0:02:36.3]} 18... Qd4 {[%clk 0:02:23.2]} 19. Qe2 {[%clk
0:02:35.6]} 19... Rfe8 {[%clk 0:02:18.9]} 20. Rfe1 {[%clk 0:02:35]} 20... Bxa4
{[%clk 0:02:12.3]} 21. e5 {[%clk 0:02:27.5]} 21... Rad8 {[%clk 0:02:08.3]} 22.
Bf5 {[%clk 0:02:20]} 22... Bb5 {[%clk 0:02:04.6]} 23. Qh5 {[%clk 0:02:14.4]}
23... Qxb2 {[%clk 0:01:46.6]} 24. Rab1 {[%clk 0:02:04.9]} 24... Qd4 {[%clk
0:01:36.2]} 25. e6 {[%clk 0:02:00.5]} 25... Qf6 {[%clk 0:01:35.3]} 26. exf7+
{[%clk 0:01:56.3]} 26... Qxf7 {[%clk 0:01:36.2]} 27. Bh7+ {[%clk 0:01:56]} 27...
Kf8 {[%clk 0:01:34.7]} 28. Qxc5+ {[%clk 0:01:50.6]} 28... Re7 {[%clk 0:01:33]}
29. Re3 {[%clk 0:01:44.8]} 29... Rd5 {[%clk 0:01:13.9]} 30. Qb4 {[%clk 0:01:31]}
30... Bd7 {[%clk 0:00:37.4]} 31. Rf3 {[%clk 0:01:13.4]} 31... Bf5 {[%clk
0:00:37.2]} 32. g4 {[%clk 0:01:12.1]} 32... Rb5 {[%clk 0:00:37.8]} 33. Qxb5
{[%clk 0:01:10.1]} 33... axb5 {[%clk 0:00:31.7]} 34. Rxf5 {[%clk 0:01:09.8]}
34... Re5 {[%clk 0:00:20.8]} 35. Rxf7+ {[%clk 0:01:07.7]} 35... Kxf7 {[%clk
0:00:21.7]} 36. Bd3 {[%clk 0:01:06.7]} 36... Ke6 {[%clk 0:00:22.2]} 37. Bxb5
{[%clk 0:01:03.1]} 37... Kd6 {[%clk 0:00:22.4]} 38. Bf1 {[%clk 0:01:02.1]} 38...
Kc6 {[%clk 0:00:22.1]} 39. Bg2+ {[%clk 0:01:02]} 1-0

[Event "Late-Titled-Tuesday-Blitz-February-20-2024"]
[Site "Chess.com"]
[Date "2024.02.20"]
[Round "2"]
[White "Tugrik1969"]
[Black "Andrei_Skvortsov"]
[Result "0-1"]
[WhiteElo "2380"]
[BlackElo "2689"]
[TimeControl "180+1"]
[EndTime "14:16:06 PST"]
[Termination "Andrei_Skvortsov won on time"]

1. e4 {[%clk 0:02:20.4]} 1... c5 {[%clk 0:02:58.6]} 2. Nf3 {[%clk 0:02:19.3]}
2... d6 {[%clk 0:02:58.9]} 3. d4 {[%clk 0:02:19.9]} 3... cxd4 {[%clk 0:02:59.8]}
4. Nxd4 {[%clk 0:02:20.8]} 4... Nf6 {[%clk 0:03:00.2]} 5. Nc3 {[%clk 0:02:21.4]}
5... g6 {[%clk 0:03:00.8]} 6. Be3 {[%clk 0:02:20.1]} 6... Bg7 {[%clk 0:03:01.2]}
7. f3 {[%clk 0:02:19.5]} 7... O-O {[%clk 0:03:01.9]} 8. Qd2 {[%clk 0:02:19.9]}
8... d5 {[%clk 0:03:02.3]} 9. e5 {[%clk 0:02:08.3]} 9... Ne8 {[%clk 0:03:01.3]}
10. f4 {[%clk 0:01:57.4]} 10... f6 {[%clk 0:03:00.2]} 11. Nf3 {[%clk 0:01:52.6]}
11... fxe5 {[%clk 0:02:59.3]} 12. fxe5 {[%clk 0:01:53.5]} 12... Bg4 {[%clk
0:02:57.2]} 13. Qxd5+ {[%clk 0:01:39]} 13... Qxd5 {[%clk 0:02:55.3]} 14. Nxd5
{[%clk 0:01:39.9]} 14... Nc6 {[%clk 0:02:44]} 15. Be2 {[%clk 0:01:32.1]} 15...
Bxf3 {[%clk 0:02:29.1]} 16. Bxf3 {[%clk 0:01:33]} 16... Bxe5 {[%clk 0:02:29.2]}
17. O-O-O {[%clk 0:00:49.3]} 17... Nf6 {[%clk 0:02:28.9]} 18. Nxf6+ {[%clk
0:00:47.3]} 18... exf6 {[%clk 0:02:27.6]} 19. Rd7 {[%clk 0:00:47.9]} 19... Rab8
{[%clk 0:02:17.6]} 20. Rhd1 {[%clk 0:00:46.4]} 20... f5 {[%clk 0:01:50.9]} 21.
Bh6 {[%clk 0:00:46.1]} 21... Rfe8 {[%clk 0:01:43.1]} 22. c3 {[%clk 0:00:33.8]}
22... Bf6 {[%clk 0:01:33.2]} 23. g3 {[%clk 0:00:27.2]} 23... Ne5 {[%clk
0:01:27.5]} 24. Bd5+ {[%clk 0:00:25.5]} 24... Kh8 {[%clk 0:01:27.5]} 25. Rxb7
{[%clk 0:00:26]} 25... Rxb7 {[%clk 0:01:24.8]} 26. Bxb7 {[%clk 0:00:26.9]} 26...
Bg7 {[%clk 0:01:24.2]} 27. Bxg7+ {[%clk 0:00:25.9]} 27... Kxg7 {[%clk
0:01:25.1]} 28. Bd5 {[%clk 0:00:22.6]} 28... g5 {[%clk 0:01:23.8]} 29. Rf1
{[%clk 0:00:20.9]} 29... f4 {[%clk 0:01:23.2]} 30. gxf4 {[%clk 0:00:19.9]} 30...
gxf4 {[%clk 0:01:24.1]} 31. Kc2 {[%clk 0:00:20.4]} 31... Rf8 {[%clk 0:01:23.7]}
32. c4 {[%clk 0:00:21]} 32... Kh6 {[%clk 0:01:20.4]} 33. c5 {[%clk 0:00:20.6]}
33... Ng4 {[%clk 0:01:21]} 34. Rf3 {[%clk 0:00:01.2]} 34... Ne3+ {[%clk
0:01:19.8]} 35. Rxe3 {[%clk 0:00:01.7]} 35... fxe3 {[%clk 0:01:20]} 36. Kd3
{[%clk 0:00:02]} 36... Rd8 {[%clk 0:01:20.1]} 0-1

[Event "Late-Titled-Tuesday-Blitz-February-20-2024"]
[Site "Chess.com"]
[Date "2024.02.20"]
[Round "2"]
[White "Doublekk14"]
[Black "JonSnowNW1"]
[Result "1-0"]
[WhiteElo "2317"]
[BlackElo "2493"]
[TimeControl "180+1"]
[EndTime "14:16:06 PST"]
[Termination "Doublekk14 won by resignation"]

1. c4 {[%clk 0:03:00.9]} 1... c6 {[%clk 0:02:59.7]} 2. e4 {[%clk 0:03:00.4]}
2... d5 {[%clk 0:02:58.8]} 3. exd5 {[%clk 0:03:00.5]} 3... cxd5 {[%clk
0:02:59.7]} 4. d4 {[%clk 0:03:01.3]} 4... Nf6 {[%clk 0:02:59.6]} 5. Nc3 {[%clk
0:03:01.2]} 5... Nc6 {[%clk 0:02:58.8]} 6. Nf3 {[%clk 0:03:00.5]} 6... Bg4
{[%clk 0:02:53.9]} 7. c5 {[%clk 0:02:58.3]} 7... e6 {[%clk 0:02:50.1]} 8. h3
{[%clk 0:02:57.9]} 8... Bh5 {[%clk 0:02:49.9]} 9. Bb5 {[%clk 0:02:54.7]} 9...
Be7 {[%clk 0:02:47.3]} 10. O-O {[%clk 0:02:52.7]} 10... O-O {[%clk 0:02:46.8]}
11. Be3 {[%clk 0:02:50.3]} 11... Ne4 {[%clk 0:02:44.3]} 12. Bxc6 {[%clk
0:02:28.1]} 12... bxc6 {[%clk 0:02:43.1]} 13. g4 {[%clk 0:02:26]} 13... Bg6
{[%clk 0:02:42.5]} 14. Ne5 {[%clk 0:02:25.8]} 14... Nxc3 {[%clk 0:02:39.3]} 15.
bxc3 {[%clk 0:02:24.3]} 15... Qc7 {[%clk 0:02:34.5]} 16. Qa4 {[%clk 0:02:22.4]}
16... Rfc8 {[%clk 0:02:18.3]} 17. Bf4 {[%clk 0:02:21.7]} 17... Qb7 {[%clk
0:02:06.6]} 18. Nxg6 {[%clk 0:02:02.5]} 18... hxg6 {[%clk 0:02:07.5]} 19. Rab1
{[%clk 0:02:02.2]} 19... Qd7 {[%clk 0:02:07.9]} 20. Qa6 {[%clk 0:01:59.2]} 20...
g5 {[%clk 0:01:59.2]} 21. Bg3 {[%clk 0:01:49.7]} 21... Bf6 {[%clk 0:01:51]} 22.
Rb7 {[%clk 0:01:46.1]} 22... Qe8 {[%clk 0:01:50.5]} 23. Rxa7 {[%clk 0:01:43.4]}
23... Rxa7 {[%clk 0:01:49.8]} 24. Qxa7 {[%clk 0:01:43.2]} 24... Ra8 {[%clk
0:01:49.9]} 25. Qc7 {[%clk 0:01:39.3]} 25... Rxa2 {[%clk 0:01:47]} 26. Rb1
{[%clk 0:01:35.9]} 26... Ra8 {[%clk 0:01:46.3]} 27. Rb6 {[%clk 0:01:30.8]} 27...
Bd8 {[%clk 0:01:44.2]} 28. Qxc6 {[%clk 0:01:24.7]} 28... Ra1+ {[%clk 0:01:26.1]}
29. Kg2 {[%clk 0:01:17.6]} 29... Qe7 {[%clk 0:01:26.2]} 30. Qd6 {[%clk
0:01:06.6]} 30... Qf6 {[%clk 0:00:30.2]} 31. Rb8 {[%clk 0:01:02.1]} 31... Kh7
{[%clk 0:00:27]} 32. Qxd8 {[%clk 0:00:58.7]} 1-0